bitfinex/quotes_BTCUSD_20250922
["timestamp","ask_amount","ask_price","bid_price","bid_amount"]
[1758553057424,0.21501899,113140.0,113130.0,0.42661311]
[1758553057635,0.21708899,113140.0,113130.0,0.42361311]
[1758553057996,0.21708899,113140.0,113130.0,0.42561311]
[1758553058926,0.20708899,113140.0,113130.0,0.42561311]
[1758553059110,0.20708899,113140.0,113130.0,0.42861311]
[1758553061351,0.2070933,113140.0,113130.0,0.42861311]
[1758553061678,0.4867433,113140.0,113130.0,0.42861311]
[1758553061875,0.4628033,113140.0,113130.0,0.42861311]
[1758553062082,0.4628033,113140.0,113130.0,0.81134946]
[1758553063364,0.4867433,113140.0,113130.0,0.42861311]
[1758553064578,0.4888133,113140.0,113130.0,0.42861311]
[1758553064783,0.48884384,113140.0,113130.0,0.71531798]
[1758553066849,0.77872871,113140.0,113130.0,0.42351311]
[1758553067482,1.06543358,113140.0,113130.0,0.42351311]
[1758553067932,1.06543358,113140.0,113130.0,0.33843105]
[1758553069137,1.06543356,113140.0,113130.0,0.33843105]
[1758553069838,1.06543356,113140.0,113130.0,0.2727]
[1758553070025,1.40543356,113140.0,113130.0,0.2727]
[1758553071382,1.12371356,113140.0,113130.0,0.2727]
[1758553071561,1.4053136,113140.0,113130.0,0.2727]
[1758553073155,1.1237136,113140.0,113130.0,0.2727]
[1758553073379,1.3908911,113140.0,113130.0,0.2727]
[1758553074323,1.3908911,113140.0,113130.0,0.003]
[1758553074744,0.53588136,113140.0,113130.0,0.003]
[1758553074906,1.3908911,113140.0,113130.0,0.003]
[1758553075309,1.3908511,113140.0,113130.0,0.003]
[1758553079125,1.3908111,113140.0,113130.0,0.003]
[1758553080812,1.67751597,113140.0,113130.0,0.003]
[1758553081487,1.79961757,113140.0,113130.0,0.003]
[1758553081878,1.79961757,113140.0,113130.0,0.001]
[1758553082081,1.42357757,113140.0,113130.0,0.001]
[1758553082290,1.45319593,113140.0,113130.0,0.001]
[1758553082510,0.17680339,113120.0,113110.0,0.2697]
[1758553082731,1.05490313,113120.0,113110.0,0.35994967]
[1758553082934,1.05460067,113120.0,113110.0,0.35994967]
[1758553083747,1.05460067,113120.0,113110.0,0.36194967]
[1758553084010,0.74991067,113120.0,113110.0,0.36794967]
[1758553084310,0.4632058,113120.0,113110.0,0.39094967]
[1758553084519,0.7446858,113120.0,113110.0,0.39094967]
[1758553084838,0.4632058,113120.0,113110.0,0.39094967]
[1758553085043,0.17650093,113120.0,113110.0,0.36794967]
[1758553085247,0.17650093,113120.0,113110.0,0.85447356]
[1758553086518,0.17680339,113120.0,113110.0,0.85447356]
[1758553086717,0.17680339,113120.0,113110.0,1.13591356]
[1758553088194,0.17680339,113120.0,113110.0,0.84920869]
[1758553088394,0.17680339,113120.0,113110.0,1.13591356]
[1758553089869,0.46350681,113130.0,113120.0,0.17680339]
[1758553090060,0.18609694,113150.0,113130.0,0.17678776]
[1758553090264,0.45855651,113150.0,113140.0,0.29002181]
[1758553090467,0.45855651,113150.0,113140.0,0.11324967]
[1758553090725,0.45855651,113150.0,113140.0,0.09024967]
[1758553090894,0.74526138,113150.0,113140.0,0.09024967]
[1758553091044,0.48176651,113150.0,113140.0,0.26702181]
[1758553091279,0.74526138,113150.0,113140.0,0.26702181]
[1758553091515,0.45902596,113150.0,113140.0,0.26702181]
[1758553091747,0.74573083,113150.0,113140.0,0.30754065]
[1758553091963,0.74573083,113150.0,113140.0,0.10776851]
[1758553092183,0.46002596,113150.0,113140.0,0.30221786]
[1758553092418,0.74673083,113150.0,113140.0,0.28454065]
[1758553093486,0.74773083,113150.0,113140.0,0.28454065]
[1758553093705,0.46102596,113150.0,113140.0,0.30754065]
[1758553093931,0.17962596,113150.0,113140.0,0.30754065]
[1758553094172,0.17962596,113150.0,113140.0,0.30841065]
[1758553095423,0.17962596,113150.0,113140.0,0.10776851]
[1758553095627,0.49114083,113150.0,113140.0,0.08727967]
[1758553096295,0.49114083,113150.0,113140.0,0.09046967]
[1758553096755,0.49419083,113150.0,113140.0,0.08526967]
[1758553097172,0.49114083,113150.0,113140.0,0.08738967]
[1758553097377,0.49114083,113150.0,113140.0,0.10474167]
[1758553097578,0.49114083,113150.0,113140.0,0.10793167]
[1758553097986,0.49114083,113150.0,113140.0,0.37763167]
[1758553098529,0.49114083,113150.0,113140.0,0.35708967]
[1758553099306,0.20243596,113150.0,113140.0,0.36027967]
[1758553099512,0.20243596,113150.0,113140.0,0.35496967]
[1758553099513,0.20748596,113150.0,113140.0,0.35496967]
[1758553099713,0.49419083,113150.0,113140.0,0.35496967]
[1758553103068,0.20443596,113150.0,113140.0,0.35708967]
[1758553103273,0.49419083,113150.0,113140.0,0.35496967]
[1758553103621,0.49114083,113150.0,113140.0,0.35496967]
[1758553106158,0.49419083,113150.0,113140.0,0.35496967]
[1758553107113,0.77234083,113150.0,113140.0,0.35708967]
[1758553107314,0.48914083,113150.0,113140.0,0.36006967]
[1758553107522,0.74753083,113150.0,113140.0,0.38278967]
[1758553107729,0.74753083,113150.0,113140.0,0.36006967]
[1758553107934,0.74753083,113150.0,113140.0,0.38278967]
[1758553108140,0.77197083,113150.0,113140.0,0.36006967]
[1758553109487,0.77197083,113150.0,113140.0,0.53684181]
[1758553109635,0.20406596,113150.0,113140.0,0.53684181]
[1758553109839,0.74753083,113150.0,113140.0,0.53684181]
[1758553110133,0.74753083,113150.0,113140.0,0.55956181]
[1758553110533,0.46082596,113150.0,113140.0,0.55956181]
[1758553110737,0.74753083,113150.0,113140.0,0.38278967]
[1758553111320,0.46082596,113150.0,113140.0,0.38278967]
[1758553111781,0.46633083,113150.0,113140.0,0.55956181]
[1758553112098,0.00286945,113150.0,113140.0,0.84626668]
[1758553113089,0.00186945,113150.0,113140.0,0.84626668]
[1758553113359,0.00186945,113150.0,113140.0,0.84726668]
[1758553113807,0.00086945,113150.0,113140.0,0.84726668]
[1758553114093,0.00186945,113150.0,113140.0,0.84726668]
[1758553114299,0.17862596,113150.0,113140.0,0.84726668]
[1758553114521,0.00186945,113150.0,113140.0,0.84726668]
[1758553116797,0.00186945,113150.0,113140.0,1.12838668]
[1758553117006,0.00186945,113150.0,113140.0,0.84726668]
[1758553117766,0.00186945,113150.0,113140.0,1.12838668]
[1758553118031,0.00186945,113150.0,113140.0,0.84726668]
[1758553118994,0.00186945,113150.0,113140.0,1.12838668]
[1758553119700,0.00186945,113150.0,113140.0,0.85868668]
[1758553119906,0.00186945,113150.0,113140.0,0.29086181]
[1758553120116,0.00186945,113150.0,113140.0,0.85864668]
[1758553122290,0.00186945,113150.0,113140.0,0.57194181]
[1758553122494,0.17862596,113150.0,113140.0,0.57194181]
[1758553122603,0.17862596,113150.0,113140.0,0.29086181]
[1758553122805,0.17862596,113150.0,113140.0,0.57194181]
[1758553123447,0.17862596,113150.0,113140.0,0.29086181]
[1758553123700,0.49506083,113150.0,113140.0,0.63704967]
[1758553123898,0.49506083,113150.0,113140.0,0.81378181]
[1758553124058,0.49506083,113150.0,113140.0,0.53274181]
[1758553124279,0.49506083,113150.0,113140.0,0.63700967]
[1758553124471,0.49183083,113150.0,113140.0,0.63700967]
[1758553124670,0.49183083,113150.0,113140.0,0.63897967]
[1758553124879,0.49183083,113150.0,113140.0,0.81575181]
[1758553125087,0.49183083,113150.0,113140.0,0.63897967]
[1758553125382,0.49506083,113150.0,113140.0,0.35596967]
[1758553125647,0.49506083,113150.0,113140.0,0.63700967]
[1758553125877,0.49506083,113150.0,113140.0,0.35596967]
[1758553126763,0.59062169,113150.0,113140.0,0.35596967]
[1758553127867,0.59062169,113150.0,113140.0,0.08626967]
[1758553130161,0.58739169,113150.0,113140.0,0.26501181]
[1758553130457,0.20512596,113150.0,113140.0,0.08823967]
[1758553131751,0.18068596,113150.0,113140.0,0.28566902]
[1758553132016,0.00186945,113150.0,113140.0,0.26799181]
[1758553132231,0.00186945,113150.0,113140.0,0.67297754]
[1758553133278,0.00186945,113150.0,113140.0,0.29071181]
[1758553133662,0.00186945,113150.0,113140.0,0.56041181]
[1758553135109,0.00186945,113150.0,113140.0,0.94267754]
[1758553135954,0.00186945,113150.0,113140.0,0.67297754]
[1758553138755,0.17674158,113160.0,113150.0,0.20488706]
[1758553138974,0.2011085,113160.0,113150.0,0.57420673]
[1758553139203,0.2011085,113160.0,113150.0,0.57621673]
[1758553141323,0.1767885,113160.0,113150.0,0.29529673]
[1758553141547,0.1817885,113160.0,113150.0,0.57617673]
[1758553141748,0.2061085,113160.0,113150.0,0.29529673]
[1758553141984,0.2081085,113160.0,113150.0,0.11854022]
[1758553142187,0.2081085,113160.0,113150.0,0.39629022]
[1758553142514,0.2081085,113160.0,113150.0,0.66599022]
[1758553142722,0.2081085,113160.0,113150.0,0.84274673]
[1758553143422,0.2081085,113160.0,113150.0,0.38511022]
[1758553143590,0.2081085,113160.0,113150.0,0.66599022]
[1758553144004,0.2081085,113160.0,113150.0,0.38511022]
[1758553144251,0.2081085,113160.0,113150.0,0.66599022]
[1758553144466,0.2081085,113160.0,113150.0,0.38511022]
[1758553144677,0.2081085,113160.0,113150.0,0.84274673]
[1758553145763,0.2081085,113160.0,113150.0,0.84587673]
[1758553145985,0.1817885,113160.0,113150.0,0.84587673]
[1758553146169,0.1817885,113160.0,113150.0,0.86883673]
[1758553147012,0.1817885,113160.0,113150.0,0.84587673]
[1758553148579,0.00504692,113160.0,113150.0,0.84587673]
[1758553148910,0.18178781,113160.0,113150.0,0.86883673]
[1758553149403,0.18178781,113160.0,113150.0,0.58795673]
[1758553149606,0.18178781,113160.0,113150.0,0.86875673]
[1758553152443,0.00504692,113160.0,113150.0,1.25102246]
[1758553153372,0.00504692,113160.0,113150.0,1.59102246]
[1758553153539,0.00104692,113160.0,113150.0,1.59102246]
[1758553154383,4.692e-05,113160.0,113150.0,1.59102246]
[1758553154611,4.692e-05,113160.0,113150.0,1.59202246]
[1758553154826,4.692e-05,113160.0,113150.0,1.39137436]
[1758553155291,4.692e-05,113160.0,113150.0,1.79325746]
[1758553155492,4.692e-05,113160.0,113150.0,1.80025746]
[1758553155691,4.692e-05,113160.0,113150.0,1.42393746]
[1758553156108,4.692e-05,113160.0,113150.0,1.80325746]
[1758553156312,4.692e-05,113160.0,113150.0,1.42693746]
[1758553156517,4.692e-05,113160.0,113150.0,1.80321746]
[1758553157374,4.692e-05,113160.0,113150.0,1.70765746]
[1758553157574,4.692e-05,113160.0,113150.0,1.80321746]
[1758553160527,4.692e-05,113160.0,113150.0,2.25121746]
[1758553161374,4.692e-05,113160.0,113150.0,2.15561746]
[1758553161587,4.692e-05,113160.0,113150.0,2.25113746]
[1758553162047,4.692e-05,113160.0,113150.0,2.30113746]
[1758553164442,4.692e-05,113160.0,113150.0,2.29809746]
[1758553164777,4.692e-05,113160.0,113150.0,2.30309746]
[1758553164984,4.692e-05,113160.0,113150.0,2.29605746]
[1758553165188,4.692e-05,113160.0,113150.0,2.24805746]
[1758553165388,4.692e-05,113160.0,113150.0,2.29805746]
[1758553165603,4.692e-05,113160.0,113150.0,2.29105746]
[1758553165853,4.692e-05,113160.0,113150.0,1.91493746]
[1758553166088,4.692e-05,113160.0,113150.0,1.92493746]
[1758553166291,4.692e-05,113160.0,113150.0,2.20553746]
[1758553166494,4.692e-05,113160.0,113150.0,1.92493746]
[1758553167276,4.692e-05,113160.0,113150.0,1.92993746]
[1758553167485,4.692e-05,113160.0,113150.0,1.90697746]
[1758553167687,0.02297692,113160.0,113150.0,1.85697746]
[1758553167907,4.692e-05,113160.0,113150.0,2.25577746]
[1758553168339,4.692e-05,113160.0,113150.0,1.87969746]
[1758553168539,4.692e-05,113160.0,113150.0,2.25577746]
[1758553169190,0.02293,113170.0,113150.0,2.25577746]
[1758553169389,0.17990051,113180.0,113170.0,0.42344836]
[1758553169644,0.17990051,113180.0,113170.0,0.50871803]
[1758553169849,0.18203051,113180.0,113170.0,0.78927803]
[1758553171421,0.58722624,113180.0,113170.0,0.61251275]
[1758553171630,0.58722624,113180.0,113170.0,0.61551275]
[1758553171834,0.58722624,113180.0,113170.0,0.33499275]
[1758553172034,0.58722624,113180.0,113170.0,0.61851275]
[1758553172451,0.58722624,113180.0,113170.0,0.68250128]
[1758553173489,0.58722624,113180.0,113170.0,0.67950128]
[1758553173697,0.58722624,113180.0,113170.0,0.68050128]
[1758553174702,0.58722624,113180.0,113170.0,0.39998128]
[1758553174901,0.58722624,113180.0,113170.0,0.68050128]
[1758553175146,0.61379301,113180.0,113170.0,0.68050128]
[1758553176339,0.61779301,113180.0,113170.0,0.68050128]
[1758553176544,0.61779301,113180.0,113170.0,0.67950128]
[1758553177832,0.61779301,113180.0,113170.0,0.39898128]
[1758553179072,0.61774795,113180.0,113170.0,0.39898128]
[1758553179875,0.23548222,113180.0,113170.0,0.39898128]
[1758553180086,0.61774795,113180.0,113170.0,0.39898128]
[1758553180655,0.61774795,113180.0,113170.0,0.67946128]
[1758553181123,0.17674089,113160.0,113150.0,0.02813055]
[1758553181349,0.55900662,113160.0,113150.0,0.39384022]
[1758553181567,0.58725662,113160.0,113150.0,0.39384022]
[1758553181773,0.20499089,113160.0,113150.0,0.39384022]
[1758553181967,0.20499089,113160.0,113150.0,0.45986495]
[1758553182215,0.20180089,113160.0,113150.0,0.46183495]
[1758553182454,0.20180089,113160.0,113150.0,0.46483495]
[1758553183036,0.20499089,113160.0,113150.0,0.46586495]
[1758553183241,0.58406662,113160.0,113150.0,0.46783495]
[1758553183654,0.58406662,113160.0,113150.0,0.46586495]
[1758553183907,0.58725662,113160.0,113150.0,0.46286495]
[1758553184490,0.58725662,113160.0,113150.0,0.45986495]
[1758553184874,0.58725662,113160.0,113150.0,0.17942495]
[1758553185076,0.58725662,113160.0,113150.0,0.45986495]
[1758553185272,0.58725662,113160.0,113150.0,0.17942495]
[1758553185476,0.58725662,113160.0,113150.0,0.45986495]
[1758553185754,0.58406662,113160.0,113150.0,0.45986495]
[1758553186031,0.58406662,113160.0,113150.0,0.46086495]
[1758553186480,0.58406662,113160.0,113150.0,0.45986495]
[1758553186683,0.48842443,113160.0,113150.0,0.45986495]
[1758553186809,0.48842443,113160.0,113150.0,0.46283495]
[1758553187007,0.48842443,113160.0,113150.0,0.73253495]
[1758553187213,0.48842443,113160.0,113150.0,0.75525495]
[1758553187638,0.48842443,113160.0,113150.0,0.73253495]
[1758553187850,0.45842443,113160.0,113150.0,0.7044044]
[1758553188410,0.17180089,113160.0,113150.0,0.7044044]
[1758553188628,0.45842443,113160.0,113150.0,0.7044044]
[1758553189578,0.46161443,113160.0,113150.0,0.7024344]
[1758553189790,0.74823797,113160.0,113150.0,0.7023944]
[1758553192486,0.74823797,113160.0,113150.0,0.2707]
[1758553192719,0.74823797,113160.0,113150.0,0.001]
[1758553192720,0.77481203,113160.0,113150.0,0.001]
[1758553192904,1.05521203,113160.0,113150.0,0.001]
[1758553193370,0.17675651,113150.0,113140.0,0.55015]
[1758553193594,0.48950005,113150.0,113140.0,0.63546659]
[1758553193872,0.49163005,113150.0,113140.0,0.63546659]
[1758553194071,0.51820411,113150.0,113140.0,0.63546659]
[1758553195139,0.79860411,113150.0,113140.0,0.63546659]
[1758553195279,0.51820411,113150.0,113140.0,0.35606659]
[1758553195488,0.79860411,113150.0,113140.0,0.35606659]
[1758553196114,0.51820411,113150.0,113140.0,0.35606659]
[1758553196329,0.79860411,113150.0,113140.0,0.35606659]
[1758553196497,0.79860411,113150.0,113140.0,0.42122763]
[1758553197125,0.51820411,113150.0,113140.0,0.42122763]
[1758553197422,0.77567411,113150.0,113140.0,0.42122763]
[1758553197626,0.79873411,113150.0,113140.0,0.42122763]
[1758553198910,0.23171057,113150.0,113140.0,0.42122763]
[1758553199152,0.77035411,113150.0,113140.0,0.42646763]
[1758553199358,0.48995411,113150.0,113140.0,0.45013763]
[1758553199535,0.51301411,113150.0,113140.0,0.45013763]
[1758553199710,0.79341411,113150.0,113140.0,0.45013763]
[1758553199919,0.79547411,113150.0,113140.0,0.45013763]
[1758553200348,0.79547411,113150.0,113140.0,0.42329763]
[1758553200711,0.51801411,113150.0,113140.0,0.42122763]
[1758553200955,0.77535411,113150.0,113140.0,0.42122763]
[1758553201112,0.79841411,113150.0,113140.0,0.42122763]
[1758553201328,0.51801411,113150.0,113140.0,0.42122763]
[1758553201569,0.79841411,113150.0,113140.0,0.42122763]
[1758553202167,0.80463765,113150.0,113140.0,0.00109692]
[1758553202372,1.08503765,113150.0,113140.0,0.00109692]
[1758553203219,0.80463765,113150.0,113140.0,0.00109692]
[1758553203419,1.08503765,113150.0,113140.0,0.00109692]
[1758553203617,1.08503765,113150.0,113140.0,9.692e-05]
[1758553203618,0.79841411,113150.0,113140.0,9.692e-05]
[1758553204918,0.51801411,113150.0,113140.0,9.692e-05]
[1758553205121,0.79837411,113150.0,113140.0,9.692e-05]
[1758553205374,0.80237411,113150.0,113140.0,9.692e-05]
[1758553205883,1.08899765,113150.0,113140.0,9.692e-05]
[1758553206721,0.80863765,113150.0,113140.0,9.692e-05]
[1758553206923,0.80237411,113150.0,113140.0,9.692e-05]
[1758553207352,0.52201411,113150.0,113140.0,9.692e-05]
[1758553207506,0.80237411,113150.0,113140.0,9.692e-05]
[1758553208316,0.52201411,113150.0,113140.0,9.692e-05]
[1758553208724,0.79943411,113150.0,113140.0,0.02583692]
[1758553208890,0.79943411,113150.0,113140.0,0.02900692]
[1758553209690,0.79943411,113150.0,113140.0,0.02583692]
[1758553210317,0.23245057,113150.0,113140.0,0.00533692]
[1758553210517,0.77431411,113150.0,113140.0,0.02900692]
[1758553211058,0.79943411,113150.0,113140.0,0.02900692]
[1758553211464,0.79943411,113150.0,113140.0,0.00216692]
[1758553211673,0.80237411,113150.0,113140.0,9.692e-05]
[1758553213419,0.80237411,113150.0,113140.0,0.00216692]
[1758553213420,0.52201411,113150.0,113140.0,0.00216692]
[1758553213654,0.48765057,113150.0,113140.0,0.09060659]
[1758553213818,0.48765057,113150.0,113140.0,0.1319538]
[1758553213819,0.77427411,113150.0,113140.0,0.1319538]
[1758553214026,0.20733057,113150.0,113140.0,0.1319538]
[1758553214228,0.77427411,113150.0,113140.0,0.1319538]
[1758553214477,0.49395411,113150.0,113140.0,0.1319538]
[1758553214682,0.77427411,113150.0,113140.0,0.1319538]
[1758553215603,0.74770005,113150.0,113140.0,0.1319538]
[1758553215802,0.77740005,113150.0,113140.0,0.08536659]
[1758553216009,0.49708005,113150.0,113140.0,0.08536659]
[1758553216215,0.77740005,113150.0,113140.0,0.08536659]
[1758553216642,0.49708005,113150.0,113140.0,0.08536659]
[1758553216858,0.77740005,113150.0,113140.0,0.08536659]
[1758553217064,1.06402359,113150.0,113140.0,9.692e-05]
[1758553217692,1.43060066,113150.0,113140.0,9.692e-05]
[1758553221120,1.43678642,113150.0,113140.0,9.692e-05]
[1758553221321,1.44503669,113150.0,113140.0,9.692e-05]
[1758553222323,1.44504005,113150.0,113140.0,9.692e-05]
[1758553224378,1.43678642,113150.0,113140.0,9.692e-05]
[1758553226027,0.54733358,113150.0,113140.0,0.00222692]
[1758553226227,0.54733358,113150.0,113140.0,0.00517692]
[1758553226228,0.49395712,113150.0,113140.0,0.00517692]
[1758553226436,0.49395712,113150.0,113140.0,0.02980692]
[1758553226647,0.20733358,113150.0,113140.0,0.02980692]
[1758553226918,0.48765358,113150.0,113140.0,0.02980692]
[1758553227160,0.20733358,113150.0,113140.0,0.1314138]
[1758553227318,0.18075651,113150.0,113140.0,0.30818594]
[1758553227518,0.18075651,113150.0,113140.0,0.29050873]
[1758553228205,0.004,113150.0,113140.0,0.29050873]
[1758553228412,0.004,113150.0,113140.0,0.57713227]
[1758553228596,0.18075651,113150.0,113140.0,0.29050873]
[1758553229365,0.18075651,113150.0,113140.0,0.57713227]
[1758553229774,0.18075651,113150.0,113140.0,0.29050873]
[1758553230127,0.004,113150.0,113140.0,0.57713227]
[1758553230872,0.004,113150.0,113140.0,0.85741227]
[1758553231101,0.004,113150.0,113140.0,0.57713227]
[1758553231338,0.18055744,113150.0,113140.0,0.85741227]
[1758553232128,0.00380093,113150.0,113140.0,0.85741227]
[1758553233305,0.00380093,113150.0,113140.0,1.14403581]
[1758553233511,0.00380093,113150.0,113140.0,0.86375581]
[1758553233710,0.00380093,113150.0,113140.0,1.14403581]
[1758553234737,0.176741,113160.0,113150.0,0.17675651]
[1758553234916,0.176741,113160.0,113150.0,0.54864972]
[1758553235122,0.176741,113160.0,113150.0,0.57707972]
[1758553235329,0.18557567,113170.0,113160.0,0.17674089]
[1758553235541,0.21207099,113180.0,113160.0,0.5770641]
[1758553235743,0.18550093,113180.0,113170.0,0.08837967]
[1758553235954,0.49892447,113180.0,113170.0,0.10658967]
[1758553236154,0.49892447,113180.0,113170.0,0.12107084]
[1758553236381,0.49892447,113180.0,113170.0,0.09778084]
[1758553236818,0.21330093,113180.0,113170.0,0.09778084]
[1758553237023,0.49992447,113180.0,113170.0,0.09778084]
[1758553237434,0.50315447,113180.0,113170.0,0.08126967]
[1758553237646,0.50315447,113180.0,113170.0,0.07626967]
[1758553237829,0.78977801,113180.0,113170.0,0.07626967]
[1758553238028,0.78877801,113180.0,113170.0,0.14260125]
[1758553238266,0.79077801,113180.0,113170.0,0.14260125]
[1758553242307,0.76605801,113180.0,113170.0,0.14463125]
[1758553242509,0.50092447,113180.0,113170.0,0.14463125]
[1758553243170,0.49242093,113180.0,113170.0,0.14774125]
[1758553243380,0.46770093,113180.0,113170.0,0.14774125]
[1758553243588,0.75432447,113180.0,113170.0,0.17103125]
[1758553244279,0.78112447,113180.0,113170.0,0.17103125]
[1758553244759,0.78112447,113180.0,113170.0,0.14463125]
[1758553245374,0.78112447,113180.0,113170.0,0.17103125]
[1758553245582,0.49242093,113180.0,113170.0,0.17103125]
[1758553245793,0.49242093,113180.0,113170.0,0.65205259]
[1758553245794,0.002,113180.0,113170.0,0.65205259]
[1758553246000,0.002,113180.0,113170.0,0.63438007]
[1758553246206,0.00195874,113180.0,113170.0,0.63438007]
[1758553246902,0.1786684,113180.0,113170.0,0.34775653]
[1758553247108,0.17669483,113190.0,113170.0,0.62795653]
[1758553247317,0.17669483,113190.0,113180.0,0.17670966]
[1758553247525,0.17669483,113190.0,113180.0,0.11166967]
[1758553247745,0.17669483,113190.0,113180.0,0.11369967]
[1758553247926,0.17669483,113190.0,113180.0,0.29040933]
[1758553248587,0.17677784,113190.0,113180.0,0.29140933]
[1758553248770,0.17677784,113190.0,113180.0,0.11469967]
[1758553248979,0.17885784,113190.0,113180.0,0.11469967]
[1758553249193,0.17677784,113190.0,113180.0,0.11469967]
[1758553249969,0.20357784,113190.0,113180.0,0.11158967]
[1758553250191,0.20357784,113190.0,113180.0,0.11469967]
[1758553250400,0.20149784,113190.0,113180.0,0.11469967]
[1758553251042,0.20357784,113190.0,113180.0,0.11469967]
[1758553251838,0.20357784,113190.0,113180.0,0.11158967]
[1758553252049,0.20357784,113190.0,113180.0,0.08829967]
[1758553252452,0.58874536,113190.0,113180.0,0.08626967]
[1758553253285,0.58874536,113190.0,113180.0,0.001]
[1758553253435,0.61126553,113190.0,113180.0,0.001]
[1758553253644,0.95531179,113190.0,113180.0,0.001]
[1758553254241,0.17670966,113180.0,113170.0,0.06633158]
[1758553254528,0.17670966,113180.0,113160.0,0.01316472]
[1758553254529,0.17672528,113170.0,113160.0,0.01316472]
[1758553254697,0.17674089,113160.0,113150.0,0.33312643]
[1758553254863,0.17674089,113160.0,113150.0,0.61066474]
[1758553255674,0.17674089,113160.0,113150.0,0.33050474]
[1758553255878,0.17674089,113160.0,113150.0,0.6782558]
[1758553256288,0.20144528,113170.0,113150.0,0.6782558]
[1758553256494,0.17672528,113170.0,113160.0,0.28841056]
[1758553256730,0.17672528,113170.0,113160.0,0.29241056]
[1758553256924,0.17672528,113170.0,113160.0,0.29444056]
[1758553257137,0.17672528,113170.0,113160.0,0.29044056]
[1758553257935,0.17672528,113170.0,113160.0,0.29144056]
[1758553258290,0.17672528,113170.0,113160.0,0.29544056]
[1758553258646,0.17672528,113170.0,113160.0,0.11869967]
[1758553260242,0.20572528,113170.0,113160.0,0.09026967]
[1758553260625,0.5876628,113170.0,113160.0,0.09026967]
[1758553261698,0.20572528,113170.0,113160.0,0.09026967]
[1758553261902,0.5876628,113170.0,113160.0,0.09026967]
[1758553262377,0.20572528,113170.0,113160.0,0.09026967]
[1758553262577,0.5876628,113170.0,113160.0,0.09026967]
[1758553264830,0.8678228,113170.0,113160.0,0.09026967]
[1758553265237,0.5876628,113170.0,113160.0,0.09026967]
[1758553265456,0.8678228,113170.0,113160.0,0.09026967]
[1758553265689,0.5876628,113170.0,113160.0,0.09026967]
[1758553265838,0.8678228,113170.0,113160.0,0.09026967]
[1758553266472,0.8678228,113170.0,113160.0,0.004]
[1758553267129,0.17674089,113160.0,113150.0,0.06759106]
[1758553267296,0.55867841,113160.0,113150.0,0.15286073]
[1758553267473,0.58553841,113160.0,113150.0,0.08526967]
[1758553267659,0.58767841,113160.0,113150.0,0.08526967]
[1758553268042,0.86783841,113160.0,113150.0,0.08526967]
[1758553268229,0.58767841,113160.0,113150.0,0.08526967]
[1758553268436,0.58767841,113160.0,113150.0,0.08626967]
[1758553268922,0.86462841,113160.0,113150.0,0.08842967]
[1758553269158,0.58446841,113160.0,113150.0,0.08842967]
[1758553269362,0.48269089,113160.0,113150.0,0.08842967]
[1758553269573,0.20253089,113160.0,113150.0,0.09157967]
[1758553269763,0.17674089,113160.0,113150.0,0.37378366]
[1758553270033,0.17674089,113160.0,113150.0,1.01820553]
[1758553270236,0.17674089,113160.0,113150.0,0.63626801]
[1758553270865,0.23576496,113180.0,113150.0,0.46834932]
[1758553271088,0.18554514,113180.0,113160.0,0.30542464]
[1758553271265,0.18554514,113180.0,113170.0,0.0279]
[1758553271493,0.21133514,113180.0,113170.0,0.11001967]
[1758553271920,0.59327266,113180.0,113170.0,0.08742967]
[1758553272125,0.59927266,113180.0,113170.0,0.08742967]
[1758553272336,0.59713266,113180.0,113170.0,0.28497747]
[1758553272541,0.19154514,113180.0,113170.0,0.28989495]
[1758553272749,0.19154514,113180.0,113170.0,0.95199247]
[1758553272750,0.006,113180.0,113170.0,0.95199247]
[1758553272968,0.006,113180.0,113170.0,0.57005495]
[1758553273187,0.009,113180.0,113170.0,0.95199247]
[1758553273400,0.003,113180.0,113170.0,0.95199247]
[1758553274068,0.003,113180.0,113170.0,0.97855556]
[1758553274299,8.301e-05,113190.0,113180.0,0.17670966]
[1758553274510,8.301e-05,113190.0,113180.0,0.64391685]
[1758553274745,8.301e-05,113190.0,113180.0,0.67323685]
[1758553274948,8.301e-05,113190.0,113180.0,0.95335685]
[1758553276443,8.301e-05,113190.0,113180.0,0.95435685]
[1758553277082,8.301e-05,113190.0,113180.0,1.29835685]
[1758553278840,8.301e-05,113190.0,113180.0,1.08487443]
[1758553279045,8.301e-05,113190.0,113180.0,1.46059443]
[1758553279464,8.301e-05,113190.0,113180.0,1.08487443]
[1758553279900,8.301e-05,113190.0,113180.0,1.45675443]
[1758553280115,8.301e-05,113190.0,113180.0,0.70893691]
[1758553280321,8.301e-05,113190.0,113180.0,0.99133691]
[1758553280709,8.301e-05,113190.0,113180.0,0.99145691]
[1758553280923,8.301e-05,113190.0,113180.0,1.09087443]
[1758553281146,8.301e-05,113190.0,113180.0,1.37535443]
[1758553281347,8.301e-05,113190.0,113180.0,1.36435443]
[1758553281788,8.301e-05,113190.0,113180.0,1.37135443]
[1758553282027,0.17677706,113190.0,113180.0,1.09087443]
[1758553282240,8.301e-05,113190.0,113180.0,1.03131443]
[1758553282693,8.301e-05,113190.0,113180.0,1.02731443]
[1758553282905,8.301e-05,113190.0,113180.0,1.02931443]
[1758553283526,8.301e-05,113190.0,113180.0,1.02955443]
[1758553284331,8.301e-05,113190.0,113180.0,1.36955443]
[1758553284743,8.301e-05,113190.0,113180.0,1.49970633]
[1758553284953,0.0004,113200.0,113190.0,0.58878347]
[1758553285201,0.0004,113200.0,113190.0,0.70135314]
[1758553285401,0.0004,113200.0,113190.0,0.70337314]
[1758553286059,0.0004,113200.0,113190.0,0.67322124]
[1758553286274,0.0004,113200.0,113190.0,1.04954124]
[1758553286484,0.0004,113200.0,113190.0,0.67522124]
[1758553286693,0.0004,113200.0,113190.0,1.04954124]
[1758553286898,0.0004,113200.0,113190.0,1.05454124]
[1758553287145,0.0004,113200.0,113190.0,0.30528372]
[1758553287384,0.0004,113200.0,113190.0,0.88799372]
[1758553287585,0.0004,113200.0,113190.0,0.91629372]
[1758553287768,0.0004,113200.0,113190.0,1.29823124]
[1758553288591,0.0004,113200.0,113190.0,1.43841115]
[1758553288817,0.0004,113200.0,113190.0,1.15761115]
[1758553289061,0.0004,113200.0,113190.0,1.01181372]
[1758553289263,0.0004,113200.0,113190.0,1.53693115]
[1758553289712,0.0004,113200.0,113190.0,1.16061115]
[1758553289928,0.0004,113200.0,113190.0,1.44137115]
[1758553290173,0.0004,113200.0,113190.0,0.63326372]
[1758553290360,0.0004,113200.0,113190.0,0.91917372]
[1758553291752,0.0004,113200.0,113190.0,0.91913372]
[1758553293766,0.0004,113200.0,113190.0,0.91609372]
[1758553293907,0.0003,113200.0,113190.0,0.91913372]
[1758553294322,0.0003,113200.0,113190.0,0.63841372]
[1758553294558,0.0003,113200.0,113190.0,0.91913372]
[1758553296030,0.00021166,113200.0,113190.0,1.16053115]
[1758553296186,0.00021166,113200.0,113190.0,1.53665115]
[1758553296390,0.00021166,113200.0,113190.0,0.63841372]
[1758553296798,0.00021166,113200.0,113190.0,0.91909372]
[1758553296979,0.00021166,113200.0,113190.0,0.61511372]
[1758553297195,0.00021166,113200.0,113190.0,0.91909372]
[1758553297518,0.00021166,113200.0,113190.0,1.44121115]
[1758553298703,0.00021166,113200.0,113190.0,1.16053115]